fUSD/lending_fUSD_20250204
["ID","MTS","AMOUNT","RATE_DAILY","PERIOD"]
[351604927,1738659032901,-894.71,8.656e-05,2]
[351604928,1738659032909,-740.63,8.656e-05,2]
[351604930,1738659032918,-500.0,8.656e-05,2]
[351604932,1738659032927,-755.16,8.656e-05,2]
[351604933,1738659032937,-500.0,8.656e-05,2]
[351604934,1738659032947,-500.0,8.656e-05,2]
[351604935,1738659032957,-500.0,8.656e-05,2]
[351604936,1738659032967,-500.0,8.656e-05,2]
[351604937,1738659032977,-500.0,8.656e-05,2]
[351604938,1738659032986,-934.87,8.656e-05,2]
[351604939,1738659032996,-500.0,8.656e-05,2]
[351604940,1738659033006,-500.0,8.656e-05,2]
[351604941,1738659033016,-500.0,8.656e-05,2]
[351604942,1738659033026,-587.02,8.656e-05,2]
[351604943,1738659033036,-500.0,8.656e-05,2]
[351604944,1738659033045,-901.9,8.656e-05,2]
[351604945,1738659033055,-500.0,8.656e-05,2]
[351604946,1738659033065,-515.41,8.656e-05,2]
[351604947,1738659033075,-500.0,8.656e-05,2]
[351604948,1738659033086,-760.6,8.656e-05,2]
[351604949,1738659033096,-500.0,8.656e-05,2]
[351604950,1738659033106,-500.0,8.656e-05,2]
[351604952,1738659033116,-856.16,8.656e-05,2]
[351604953,1738659033126,-500.0,8.656e-05,2]
[351604955,1738659033137,-500.0,8.656e-05,2]
[351604957,1738659033146,-730.09,8.656e-05,2]
[351604958,1738659033156,-901.96,8.656e-05,2]
[351604959,1738659033165,-500.0,8.656e-05,2]
[351604960,1738659033175,-520.9,8.656e-05,2]
[351604961,1738659033184,-710.28,8.656e-05,2]
[351604962,1738659033195,-500.0,8.656e-05,2]
[351604963,1738659033205,-500.0,8.656e-05,2]
[351604964,1738659033216,-972.68,8.656e-05,2]
[351604965,1738659033225,-500.0,8.656e-05,2]
[351604966,1738659033235,-500.0,8.656e-05,2]
[351604967,1738659033244,-1084.6,8.656e-05,2]
[351604968,1738659033254,-500.0,8.656e-05,2]
[351604969,1738659033264,-500.0,8.656e-05,2]
[351604970,1738659033274,-500.0,8.656e-05,2]
[351604971,1738659033284,-500.0,8.656e-05,2]
[351604972,1738659033293,-1220.01,8.656e-05,2]
[351604973,1738659033303,-500.0,8.656e-05,2]
[351604974,1738659033313,-500.0,8.656e-05,2]
[351604975,1738659033323,-500.0,8.656e-05,2]
[351604976,1738659033333,-500.0,8.656e-05,2]
[351604977,1738659033343,-677.43,8.656e-05,2]
[351604978,1738659033352,-500.0,8.656e-05,2]
[351604979,1738659033362,-1221.12,8.656e-05,2]
[351604980,1738659033372,-500.0,8.656e-05,2]
[351604981,1738659033382,-500.0,8.656e-05,2]
[351604982,1738659033392,-514.6886792,8.656e-05,2]
[351604983,1738659033403,-832.4,8.656e-05,2]
[351604984,1738659033413,-584.13,8.656e-05,2]
[351604985,1738659033423,-500.0,8.656e-05,2]
[351604986,1738659033434,-2470.98,8.656e-05,2]
[351604988,1738659033447,-500.0,8.656e-05,2]
[351604990,1738659033458,-500.0,8.656e-05,2]
[351604991,1738659033468,-500.0,8.656e-05,2]
[351604992,1738659033478,-2669.27,8.656e-05,2]
[351604993,1738659033489,-500.0,8.656e-05,2]
[351604994,1738659033499,-725.99,8.656e-05,2]
[351604995,1738659033509,-1964.63,8.656e-05,2]
[351604996,1738659033521,-826.82,8.656e-05,2]
[351604997,1738659033531,-1036.53,8.656e-05,2]
[351604998,1738659033543,-547.58,8.656e-05,2]
[351604999,1738659033554,-2025.49,8.656e-05,2]
[351605000,1738659033569,-1294.4,8.656e-05,2]
[351605001,1738659033579,-500.0,8.656e-05,2]
[351605002,1738659033589,-1885.94,8.656e-05,2]
[351605003,1738659033600,-822.72,8.656e-05,2]
[351605004,1738659033613,-500.0,8.656e-05,2]
[351605005,1738659033623,-500.0,8.656e-05,2]
[351605006,1738659033634,-500.0,8.656e-05,2]
[351605007,1738659033645,-597.54,8.656e-05,2]
[351605008,1738659033656,-500.0,8.656e-05,2]
[351605009,1738659033667,-500.0,8.656e-05,2]
[351605010,1738659033679,-1291.84,8.656e-05,2]
[351605011,1738659033689,-3165.89,8.656e-05,2]
[351605012,1738659033707,-1407.13,8.656e-05,2]
[351605013,1738659033717,-2222.22,8.656e-05,2]
[351605014,1738659033728,-500.0,8.656e-05,2]
[351605015,1738659033738,-1280.22,8.656e-05,2]
[351605016,1738659033749,-1169.4,8.656e-05,2]
[351605017,1738659033759,-1067.6,8.656e-05,2]
[351605018,1738659033770,-500.0,8.656e-05,2]
[351605019,1738659033781,-1259.45,8.656e-05,2]
[351605020,1738659033791,-500.0,8.656e-05,2]
[351605021,1738659033802,-2092.6,8.656e-05,2]
[351605022,1738659033812,-831.16,8.656e-05,2]
[351605023,1738659033822,-987.4,8.656e-05,2]
[351605024,1738659033833,-2120.54,8.656e-05,2]
[351605025,1738659033843,-500.0,8.656e-05,2]
[351605026,1738659033852,-500.0,8.656e-05,2]
[351605027,1738659033863,-500.0,8.656e-05,2]
[351605028,1738659033873,-500.0,8.656e-05,2]
[351605029,1738659033883,-804.18,8.656e-05,2]
[351605030,1738659033894,-1537.52,8.656e-05,2]
[351605031,1738659033904,-500.0,8.656e-05,2]
[351605032,1738659033914,-500.0,8.656e-05,2]
[351605033,1738659033925,-946.55,8.656e-05,2]
[351605034,1738659033936,-500.0,8.656e-05,2]
[351605035,1738659033952,-500.0,8.656e-05,2]
[351605036,1738659033962,-1820.66,8.656e-05,2]
[351605037,1738659033973,-1135.96,8.656e-05,2]
[351605038,1738659033982,-1213.49,8.656e-05,2]
[351605039,1738659033992,-678.56,8.656e-05,2]
[351605040,1738659034002,-590.76,8.656e-05,2]
[351605041,1738659034012,-618.43831492,8.656e-05,2]
[351605042,1738659034040,-336.19168508,8.656e-05,2]
[351605043,1738659034051,-1135.95588648,8.656e-05,2]
[351605044,1738659034063,-461.54411352,8.656e-05,2]
[351605045,1738659034073,-485.76604082,8.656e-05,2]
[351605046,1738659034085,-282.20816542,8.656e-05,2]
[351605047,1738659034097,-61.84579376,8.656e-05,2]
[351605048,1738659034107,-890.16,8.656e-05,2]
[351605049,1738659034117,-1731.26,8.656e-05,2]
[351605050,1738659034127,-1004.72,8.656e-05,2]
[351605051,1738659034137,-500.0,8.656e-05,2]
[351605052,1738659034147,-1169.36,8.656e-05,2]
[351605053,1738659034157,-271.04015918,8.656e-05,2]
[351605054,1738659034168,-680.73,8.656e-05,2]
[351605055,1738659034178,-500.0,8.656e-05,2]
[351605056,1738659034189,-1765.12,8.656e-05,2]
[351605057,1738659034202,-500.0,8.656e-05,2]
[351605058,1738659034212,-155.23494906,8.656e-05,2]
[351605059,1738659034225,-367.78854615,8.656e-05,2]
[351605060,1738659034246,-689.91650479,8.656e-05,2]
[351605061,1738659034257,-1235.21349521,8.656e-05,2]
[351605062,1738659034269,-294.33656805,8.656e-05,2]
[351605074,1738659038301,-492.59726738,8.434e-05,2]
[351605075,1738659038311,-19.30876964,8.656e-05,2]
[351605076,1738659038323,-152.2411671,8.656e-05,2]
[351605077,1738659038332,-316.16279588,8.656e-05,2]
[351605078,1738659038343,-183.83720412,8.656e-05,2]
[351605079,1738659038353,-500.0,8.656e-05,2]
[351605080,1738659038362,-500.0,8.656e-05,2]
[351605081,1738659038372,-541.33,8.656e-05,2]
[351605082,1738659038382,-1129.88,8.656e-05,2]
[351605083,1738659038391,-1169.91,8.656e-05,2]
[351605084,1738659038401,-1467.59,8.656e-05,2]
[351605085,1738659038411,-500.0,8.656e-05,2]
[351605086,1738659038420,-617.81,8.656e-05,2]
[351605087,1738659038429,-1197.52,8.656e-05,2]
[351605088,1738659038439,-1873.03,8.656e-05,2]
[351605089,1738659038450,-816.94,8.656e-05,2]
[351605090,1738659038459,-500.0,8.656e-05,2]
[351605091,1738659038469,-1615.98,8.656e-05,2]
[351605092,1738659038479,-910.81,8.656e-05,2]
[351605093,1738659038489,-2106.54,8.656e-05,2]
[351605094,1738659038499,-449.05453843,8.656e-05,2]
[351605095,1738659038509,-2491.71,8.656e-05,2]
[351605096,1738659038519,-1880.64,8.656e-05,2]
[351605097,1738659038528,-2080.39,8.656e-05,2]
[351605098,1738659038537,-500.0,8.656e-05,2]
[351605099,1738659038548,-3163.07,8.656e-05,2]
[351605100,1738659038557,-500.0,8.656e-05,2]
[351605101,1738659038567,-1986.0,8.656e-05,2]
[351605102,1738659038581,-1771.76,8.656e-05,2]
[351605103,1738659038591,-3055.65,8.656e-05,2]
[351605104,1738659038602,-500.0,8.656e-05,2]
[351605105,1738659038611,-1002.06,8.656e-05,2]
[351605106,1738659038622,-500.0,8.656e-05,2]
[351605107,1738659038632,-1346.64,8.656e-05,2]
[351605108,1738659038641,-2209.81,8.656e-05,2]
[351605109,1738659038654,-500.0,8.656e-05,2]
[351605110,1738659038664,-937.26,8.656e-05,2]
[351605111,1738659038674,-500.0,8.656e-05,2]
[351605112,1738659038684,-4399.96,8.656e-05,2]
[351605113,1738659038694,-2055.61,8.656e-05,2]
[351605114,1738659038708,-1157.41,8.656e-05,2]
[351605115,1738659038718,-381.79825745,8.656e-05,2]
[351605116,1738659038731,-391.90174255,8.656e-05,2]
[351605117,1738659038742,-1115.74,8.656e-05,2]
[351605119,1738659038751,-500.0,8.656e-05,2]
[351605121,1738659038761,-2918.35,8.656e-05,2]
[351605123,1738659038771,-578.69,8.656e-05,2]
[351605125,1738659038780,-500.0,8.656e-05,2]
[351605127,1738659038789,-1440.13,8.656e-05,2]
[351605129,1738659038798,-870.01,8.656e-05,2]
[351605131,1738659038807,-614.9,8.656e-05,2]
[351605133,1738659038816,-27.24371796,8.656e-05,2]
[351605135,1738659038828,-1897.45628204,8.656e-05,2]
[351605137,1738659038837,-1838.37,8.656e-05,2]
[351605139,1738659038846,-700.89,8.656e-05,2]
[351605141,1738659038855,-534.8,8.656e-05,2]
[351605143,1738659038864,-500.0,8.656e-05,2]
[351605145,1738659038873,-704.75,8.656e-05,2]
[351605147,1738659038882,-500.0,8.656e-05,2]
[351605149,1738659038892,-3539.94,8.656e-05,2]
[351605151,1738659038901,-1792.32,8.656e-05,2]
[351605153,1738659038910,-500.0,8.656e-05,2]
[351605155,1738659038919,-1653.85,8.656e-05,2]
[351605157,1738659038928,-500.0,8.656e-05,2]
[351605159,1738659038935,-500.0,8.656e-05,2]
[351605161,1738659038944,-500.0,8.656e-05,2]
[351605163,1738659038957,-500.0,8.656e-05,2]
[351605165,1738659038965,-1394.82,8.656e-05,2]
[351605167,1738659038975,-2199.97,8.656e-05,2]
[351605169,1738659038984,-1448.06,8.656e-05,2]
[351605171,1738659038993,-500.0,8.656e-05,2]
[351605173,1738659039003,-500.0,8.656e-05,2]
[351605174,1738659039012,-2781.11,8.656e-05,2]
[351605177,1738659039021,-1042.71,8.656e-05,2]
[351605178,1738659039031,-500.0,8.656e-05,2]
[351605180,1738659039040,-1495.6,8.656e-05,2]
[351605182,1738659039050,-986.62,8.656e-05,2]
[351605184,1738659039060,-1183.62,8.656e-05,2]
[351605186,1738659039070,-500.0,8.656e-05,2]
[351605188,1738659039079,-500.0,8.656e-05,2]
[351605190,1738659039089,-1625.81,8.656e-05,2]
[351605192,1738659039098,-500.0,8.656e-05,2]
[351605194,1738659039108,-1570.51,8.656e-05,2]
[351605196,1738659039117,-1608.89,8.656e-05,2]
[351605198,1738659039126,-762.08,8.656e-05,2]
[351605200,1738659039134,-2064.94,8.656e-05,2]
[351605202,1738659039144,-500.0,8.656e-05,2]
[351605204,1738659039153,-819.41,8.656e-05,2]
[351605206,1738659039162,-1684.69,8.656e-05,2]
[351605208,1738659039171,-1471.89,8.656e-05,2]
[351605210,1738659039181,-1525.66,8.656e-05,2]
[351605212,1738659039190,-551.96,8.656e-05,2]
[351605214,1738659039201,-500.0,8.656e-05,2]
[351605216,1738659039211,-1672.78,8.656e-05,2]
[351605218,1738659039220,-527.26,8.656e-05,2]
[351605220,1738659039230,-2878.89,8.656e-05,2]
[351605223,1738659039240,-500.0,8.656e-05,2]
[351605225,1738659039249,-1314.32,8.656e-05,2]
[351605227,1738659039259,-500.0,8.656e-05,2]
[351605228,1738659039268,-903.22,8.656e-05,2]
[351605230,1738659039278,-500.0,8.656e-05,2]
[351605232,1738659039287,-1188.41,8.656e-05,2]
[351605234,1738659039296,-678.85,8.656e-05,2]
[351605236,1738659039306,-500.0,8.656e-05,2]
[351605238,1738659039315,-1605.87,8.656e-05,2]
[351605240,1738659039324,-500.0,8.656e-05,2]
[351605242,1738659039334,-813.37,8.656e-05,2]
[351605244,1738659039344,-596.56,8.656e-05,2]
[351605246,1738659039353,-500.0,8.656e-05,2]
[351605248,1738659039363,-500.0,8.656e-05,2]
[351605250,1738659039373,-500.0,8.656e-05,2]
[351605252,1738659039383,-1547.76,8.656e-05,2]
[351605254,1738659039392,-500.0,8.656e-05,2]
[351605256,1738659039402,-674.94,8.656e-05,2]
[351605258,1738659039411,-689.9,8.656e-05,2]
[351605260,1738659039420,-728.98,8.656e-05,2]
[351605262,1738659039429,-1928.89,8.656e-05,2]
[351605264,1738659039439,-500.0,8.656e-05,2]
[351605266,1738659039448,-500.0,8.656e-05,2]
[351605268,1738659039458,-996.51,8.656e-05,2]
[351605270,1738659039467,-1193.27,8.656e-05,2]
[351605272,1738659039475,-1641.67,8.656e-05,2]
[351605274,1738659039485,-1020.73,8.656e-05,2]
[351605276,1738659039494,-551.94,8.656e-05,2]
[351605278,1738659039502,-500.0,8.656e-05,2]
[351605280,1738659039511,-508.07311143,8.656e-05,2]
[351605282,1738659039521,-500.0,8.656e-05,2]
[351605284,1738659039530,-1762.05,8.656e-05,2]
[351605286,1738659039538,-1234.33,8.656e-05,2]
[351605288,1738659039548,-1084.49,8.656e-05,2]
[351605290,1738659039557,-500.0,8.656e-05,2]
[351605292,1738659039572,-500.0,8.656e-05,2]
[351605294,1738659039582,-928.63,8.656e-05,2]
[351605295,1738659039591,-500.0,8.656e-05,2]
[351605297,1738659039600,-500.0,8.657e-05,2]
[351605300,1738659039611,-500.0,8.657e-05,2]
[351605301,1738659039620,-500.0,8.657e-05,2]
[351605303,1738659039630,-500.0,8.657e-05,2]
[351605305,1738659039639,-219.33569358,8.657e-05,2]
[351605307,1738659039649,-566.41,8.657e-05,2]
[351605309,1738659039659,-500.0,8.657e-05,2]
[351605312,1738659039670,-500.0,8.657e-05,2]
[351605313,1738659039680,-500.0,8.657e-05,2]
[351605315,1738659039688,-500.0,8.657e-05,2]
[351605318,1738659039699,-500.0,8.657e-05,2]
[351605319,1738659039708,-500.0,8.657e-05,2]
[351605321,1738659039718,-500.0,8.657e-05,2]
[351605323,1738659039728,-500.0,8.657e-05,2]
[351605325,1738659039738,-500.0,8.657e-05,2]
[351605327,1738659039747,-500.0,8.657e-05,2]
[351605329,1738659039756,-500.0,8.657e-05,2]
[351605331,1738659039765,-385.77736497,8.657e-05,2]
[351605333,1738659039774,-685.91,8.657e-05,2]
[351605335,1738659039783,-500.0,8.657e-05,2]
[351605337,1738659039793,-510.99,8.657e-05,2]
[351605339,1738659039802,-500.0,8.657e-05,2]
[351605341,1738659039814,-1166.65,8.657e-05,2]
[351605343,1738659039824,-500.0,8.657e-05,2]
[351605345,1738659039834,-500.0,8.657e-05,2]
[351605348,1738659039844,-775.45,8.657e-05,2]
[351605349,1738659039854,-500.0,8.657e-05,2]
[351605351,1738659039864,-500.0,8.657e-05,2]
[351605353,1738659039873,-500.0,8.657e-05,2]
[351605355,1738659039883,-500.0,8.657e-05,2]
[351605357,1738659039893,-500.0,8.657e-05,2]
[351605359,1738659039902,-500.0,8.657e-05,2]
[351605361,1738659039912,-500.0,8.657e-05,2]
[351605363,1738659039920,-500.0,8.657e-05,2]
[351605365,1738659039930,-500.0,8.657e-05,2]
[351605367,1738659039940,-653.58,8.657e-05,2]
[351605369,1738659039951,-1240.55,8.657e-05,2]
[351605371,1738659039961,-500.0,8.657e-05,2]
[351605373,1738659039970,-723.78,8.657e-05,2]
[351605375,1738659039980,-500.0,8.657e-05,2]
[351605377,1738659039989,-500.0,8.657e-05,2]
[351605379,1738659040000,-822.46,8.657e-05,2]
[351605381,1738659040010,-500.0,8.657e-05,2]
[351605383,1738659040020,-500.0,8.657e-05,2]
[351605385,1738659040029,-611.88,8.657e-05,2]
[351605387,1738659040039,-500.0,8.657e-05,2]
[351605389,1738659040048,-500.0,8.657e-05,2]
[351605391,1738659040057,-727.75,8.657e-05,2]
[351605393,1738659040066,-500.0,8.657e-05,2]
[351605395,1738659040075,-500.0,8.657e-05,2]
[351605397,1738659040085,-500.0,8.657e-05,2]
[351605399,1738659040094,-500.0,8.657e-05,2]
[351605401,1738659040103,-500.0,8.657e-05,2]
[351605404,1738659040113,-500.0,8.657e-05,2]
[351605406,1738659040122,-500.0,8.657e-05,2]
[351605409,1738659040131,-885.17,8.657e-05,2]
[351605412,1738659040141,-563.87,8.657e-05,2]
[351605415,1738659040150,-500.0,8.657e-05,2]
[351605418,1738659040159,-500.0,8.657e-05,2]
[351605421,1738659040168,-1395.28,8.657e-05,2]
[351605423,1738659040178,-500.0,8.657e-05,2]
[351605426,1738659040187,-500.0,8.657e-05,2]
[351605429,1738659040197,-500.0,8.657e-05,2]
[351605432,1738659040208,-689.96,8.657e-05,2]
[351605434,1738659040218,-547.65,8.657e-05,2]
[351605436,1738659040227,-500.0,8.657e-05,2]
[351605438,1738659040236,-500.0,8.657e-05,2]
[351605440,1738659040245,-500.0,8.657e-05,2]
[351605442,1738659040254,-500.0,8.657e-05,2]
[351605444,1738659040263,-500.0,8.657e-05,2]
[351605446,1738659040272,-902.37,8.657e-05,2]
[351605447,1738659040282,-1086.58,8.657e-05,2]
[351605449,1738659040291,-500.0,8.657e-05,2]
[351605451,1738659040301,-500.0,8.657e-05,2]
[351605453,1738659040310,-1917.84,8.657e-05,2]
[351605455,1738659040319,-580.54,8.657e-05,2]
[351605457,1738659040329,-594.32,8.657e-05,2]
[351605459,1738659040338,-500.0,8.657e-05,2]
[351605461,1738659040347,-1563.74,8.657e-05,2]
[351605463,1738659040356,-932.76,8.657e-05,2]
[351605465,1738659040366,-500.0,8.657e-05,2]
[351605467,1738659040375,-500.8625294,8.657e-05,2]
[351605469,1738659040384,-1076.58,8.657e-05,2]
[351605471,1738659040393,-496.1877712,8.657e-05,2]
[351605473,1738659040403,-633.59,8.657e-05,2]
[351605475,1738659040412,-500.0,8.657e-05,2]
[351605477,1738659040421,-792.01,8.657e-05,2]
[351605479,1738659040430,-642.67,8.657e-05,2]
[351605481,1738659040439,-500.0,8.657e-05,2]
[351605483,1738659040451,-745.1,8.657e-05,2]
[351605485,1738659040461,-222.51218307,8.657e-05,2]
[351605487,1738659040470,-504.68644328,8.657e-05,2]
[351605489,1738659040481,-625.6,8.657e-05,2]
[351605491,1738659040491,-500.0,8.657e-05,2]
[351605493,1738659040500,-500.0,8.657e-05,2]
[351605495,1738659040509,-969.22,8.657e-05,2]
[351605497,1738659040519,-500.0,8.657e-05,2]
[351605499,1738659040528,-693.63,8.657e-05,2]
[351605501,1738659040537,-500.0,8.657e-05,2]
[351605503,1738659040547,-712.12,8.657e-05,2]
[351605505,1738659040557,-500.0,8.657e-05,2]
[351605507,1738659040566,-500.0,8.657e-05,2]
[351605509,1738659040577,-500.0,8.657e-05,2]
[351605511,1738659040586,-1237.24,8.657e-05,2]
[351605513,1738659040595,-500.0,8.657e-05,2]
[351605515,1738659040604,-950.74,8.657e-05,2]
[351605516,1738659040614,-500.0,8.657e-05,2]
[351605517,1738659040622,-1159.9,8.657e-05,2]
[351605518,1738659040631,-817.08,8.657e-05,2]
[351605519,1738659040640,-938.99,8.657e-05,2]
[351605520,1738659040650,-500.0,8.657e-05,2]
[351605521,1738659040659,-1012.45,8.657e-05,2]
[351605522,1738659040669,-500.0,8.657e-05,2]
[351605523,1738659040677,-516.99,8.657e-05,2]
[351605524,1738659040687,-500.0,8.657e-05,2]
[351605525,1738659040695,-500.0,8.657e-05,2]
[351605526,1738659040706,-505.82,8.657e-05,2]
[351605527,1738659040715,-773.66,8.657e-05,2]
[351605528,1738659040724,-500.0,8.657e-05,2]
[351605529,1738659040733,-973.22,8.657e-05,2]
[351605530,1738659040742,-1203.37,8.657e-05,2]
[351605531,1738659040750,-500.0,8.657e-05,2]
[351605533,1738659040759,-1000.15,8.657e-05,2]
[351605535,1738659040769,-1176.01,8.657e-05,2]
[351605537,1738659040779,-500.0,8.657e-05,2]
[351605539,1738659040788,-562.75,8.657e-05,2]
[351605541,1738659040797,-1420.91,8.657e-05,2]
[351605543,1738659040806,-1644.49,8.657e-05,2]
[351605545,1738659040815,-500.0,8.657e-05,2]
[351605547,1738659040824,-655.98,8.657e-05,2]
[351605549,1738659040833,-63.48208008,8.657e-05,2]
[351605552,1738659040850,-512.81791992,8.657e-05,2]
[351605554,1738659040859,-1075.32,8.657e-05,2]
[351605556,1738659040868,-38.57225448,8.657e-05,2]
[351605558,1738659040879,-613.13774552,8.657e-05,2]
[351605560,1738659040888,-579.3,8.657e-05,2]
[351605562,1738659040898,-880.43,8.657e-05,2]
[351605564,1738659040907,-500.0,8.657e-05,2]
[351605566,1738659040917,-755.35,8.657e-05,2]
[351605568,1738659040926,-1559.02,8.657e-05,2]
[351605570,1738659040936,-1493.35,8.657e-05,2]
[351605572,1738659040945,-642.56,8.657e-05,2]
[351605574,1738659040955,-500.0,8.657e-05,2]
[351605576,1738659040963,-500.0,8.657e-05,2]
[351605577,1738659040973,-657.7,8.657e-05,2]
[351605580,1738659040983,-690.9074938,8.657e-05,2]
[351605582,1738659040994,-748.7039902,8.657e-05,2]
[351605584,1738659041006,-30.048516,8.657e-05,2]
[351605586,1738659041015,-420.38638335,8.657e-05,2]
[351605588,1738659041026,-368.42361665,8.657e-05,2]
[351605590,1738659041037,-358.9288247,8.657e-05,2]
[351605592,1738659041046,-500.0,8.657e-05,2]
[351605594,1738659041056,-885.84,8.657e-05,2]
[351605596,1738659041065,-1700.05,8.657e-05,2]
[351605598,1738659041075,-500.0,8.657e-05,2]
[351605600,1738659041084,-1272.46,8.657e-05,2]
[351605602,1738659041093,-500.0,8.657e-05,2]
[351605604,1738659041103,-500.0,8.657e-05,2]
[351605633,1738659041371,-760.04,8.657e-05,2]
[351605635,1738659041381,-500.0,8.657e-05,2]
[351605637,1738659041391,-980.16,8.657e-05,2]
[351605639,1738659041399,-500.0,8.657e-05,2]
[351605641,1738659041409,-206.26073671,8.657e-05,2]
[351605644,1738659041421,-338.86963976,8.657e-05,2]
[351605648,1738659041456,-32.80962353,8.657e-05,2]
[351605650,1738659041466,-698.29368947,8.657e-05,2]
[351605652,1738659041478,-203.71631053,8.657e-05,2]
[351605654,1738659041487,-1053.0,8.657e-05,2]
[351605656,1738659041496,-500.0,8.657e-05,2]
[351605658,1738659041506,-914.23,8.657e-05,2]
[351605660,1738659041515,-572.08668947,8.657e-05,2]
[351605663,1738659041526,-611.10331053,8.657e-05,2]
[351605665,1738659041535,-500.0,8.657e-05,2]
[351605667,1738659041546,-1143.59668938,8.657e-05,2]
[351605669,1738659041559,-252.68331062,8.657e-05,2]
[351605671,1738659041576,-500.0,8.657e-05,2]
[351605673,1738659041585,-500.0,8.657e-05,2]
[351605675,1738659041595,-500.0,8.657e-05,2]
[351605677,1738659041604,-1025.17,8.657e-05,2]
[351605679,1738659041615,-1130.98,8.657e-05,2]
[351605681,1738659041624,-500.0,8.657e-05,2]
[351605683,1738659041633,-529.23,8.657e-05,2]
[351605685,1738659041645,-715.91,8.657e-05,2]
[351605687,1738659041655,-551.61,8.657e-05,2]
[351605689,1738659041664,-500.0,8.657e-05,2]
[351605691,1738659041674,-500.0,8.657e-05,2]
[351605692,1738659041684,-522.57,8.657e-05,2]
[351605695,1738659041694,-644.82,8.657e-05,2]
[351605696,1738659041705,-500.0,8.657e-05,2]
[351605698,1738659041715,-877.22,8.657e-05,2]
[351605700,1738659041724,-500.0,8.657e-05,2]
[351605702,1738659041735,-500.0,8.657e-05,2]
[351605705,1738659041745,-500.0,8.657e-05,2]
[351605707,1738659041755,-500.0,8.657e-05,2]
[351605709,1738659041764,-94.7797389,8.657e-05,2]
[351605712,1738659041786,-405.2202611,8.657e-05,2]
[351605714,1738659041795,-500.0,8.657e-05,2]
[351605716,1738659041806,-500.0,8.657e-05,2]
[351605718,1738659041815,-500.0,8.657e-05,2]
[351605720,1738659041824,-1262.84,8.657e-05,2]
[351605722,1738659041834,-670.85,8.657e-05,2]
[351605724,1738659041843,-500.0,8.657e-05,2]
[351605726,1738659041853,-500.0,8.657e-05,2]
[351605728,1738659041863,-500.0,8.657e-05,2]
[351605730,1738659041874,-576.7,8.657e-05,2]
[351605732,1738659041884,-500.0,8.657e-05,2]
[351605734,1738659041893,-500.0,8.657e-05,2]
[351605736,1738659041903,-508.1,8.657e-05,2]
[351605738,1738659041913,-158.14684259,8.657e-05,2]
[351605740,1738659041922,-610.5,8.657e-05,2]
[351605742,1738659041932,-937.21,8.657e-05,2]
[351605744,1738659041942,-500.0,8.657e-05,2]
[351605746,1738659041953,-500.0,8.657e-05,2]
[351605748,1738659041963,-909.87,8.657e-05,2]
[351605750,1738659041972,-697.7,8.657e-05,2]
[351605752,1738659041982,-602.87,8.657e-05,2]
[351605754,1738659041992,-500.0,8.657e-05,2]
[351605756,1738659042002,-500.0,8.657e-05,2]
[351605758,1738659042011,-594.53,8.657e-05,2]
[351605760,1738659042021,-1085.61,8.657e-05,2]
[351605762,1738659042030,-645.51454176,8.657e-05,2]
[351605764,1738659042040,-500.0,8.657e-05,2]
[351605766,1738659042050,-957.04,8.657e-05,2]
[351605768,1738659042059,-930.82,8.657e-05,2]
[351605770,1738659042069,-500.0,8.657e-05,2]
[351605772,1738659042079,-1185.92,8.657e-05,2]
[351605774,1738659042088,-515.97,8.657e-05,2]
[351605776,1738659042097,-559.04,8.657e-05,2]
[351605778,1738659042106,-920.26107073,8.657e-05,2]
[351605780,1738659042118,-303.45892927,8.657e-05,2]
[351605782,1738659042128,-500.0,8.657e-05,2]
[351605784,1738659042137,-509.40178655,8.657e-05,2]
[351605786,1738659042146,-500.0,8.657e-05,2]
[351605788,1738659042156,-500.0,8.657e-05,2]
[351605790,1738659042165,-500.0,8.657e-05,2]
[351605792,1738659042175,-500.0,8.657e-05,2]
[351605794,1738659042184,-609.96,8.657e-05,2]